bitfinex-derivatives/quotes_BTCF0:USTF0_20251119
["timestamp","ask_amount","ask_price","bid_price","bid_amount"]
[1763559193842,0.2568075,91762.0,91761.0,0.00016339]
[1763559194438,0.1517275,91762.0,91761.0,0.00016339]
[1763559194641,0.2568075,91762.0,91761.0,0.00016339]
[1763559194941,0.1517275,91762.0,91761.0,0.00016339]
[1763559195136,0.04267,91753.0,91747.0,0.3608]
[1763559195441,0.04167,91753.0,91752.0,0.02281894]
[1763559195648,0.04167,91753.0,91752.0,8.894e-05]
[1763559195947,0.40247,91753.0,91752.0,8.894e-05]
[1763559196238,0.40247,91753.0,91752.0,0.04613894]
[1763559196441,0.40247,91753.0,91752.0,0.06002894]
[1763559197147,0.40247,91753.0,91752.0,0.06102894]
[1763559198346,0.40247,91753.0,91752.0,0.00208894]
[1763559198647,0.50755,91753.0,91752.0,0.00208894]
[1763559199042,0.50755,91753.0,91752.0,0.02481894]
[1763559199438,0.50755,91753.0,91752.0,0.06102894]
[1763559199643,0.50755,91753.0,91752.0,0.04713894]
[1763559200042,0.50755,91753.0,91752.0,0.02481894]
[1763559200344,0.50755,91753.0,91752.0,0.06102894]
[1763559201047,0.50755,91753.0,91752.0,0.06002894]
[1763559201842,0.50755,91753.0,91752.0,0.05902894]
[1763559202546,0.50755,91753.0,91752.0,0.02281894]
[1763559202743,0.50755,91753.0,91752.0,8.894e-05]
[1763559203159,0.50755,91753.0,91743.0,0.00016348]
[1763559203160,0.05442,91744.0,91743.0,0.00016348]
[1763559203358,0.1595,91744.0,91743.0,0.00016348]
[1763559203657,0.14775,91744.0,91743.0,0.02289348]
[1763559204064,0.14785412,91744.0,91743.0,0.02289348]
[1763559204450,0.14785412,91744.0,91743.0,0.02389348]
[1763559204850,0.15960412,91744.0,91743.0,0.00116348]
[1763559205559,0.14785412,91744.0,91743.0,0.00116348]
[1763559206070,0.14785412,91744.0,91743.0,0.00216348]
[1763559206460,0.14785412,91744.0,91743.0,0.02328348]
[1763559208369,0.14785412,91744.0,91743.0,0.00216348]
[1763559208869,0.1090948,91731.0,91728.0,0.04342]
[1763559209057,0.04497,91727.0,91726.0,0.00027255]
[1763559209262,0.15005,91727.0,91726.0,0.00027255]
[1763559209464,0.15005,91727.0,91726.0,0.02139255]
[1763559209669,0.15005,91727.0,91726.0,0.04369255]
[1763559209863,0.15005,91727.0,91726.0,0.02139255]
[1763559210067,0.15005,91727.0,91726.0,0.00027255]
[1763559210263,0.14917128,91727.0,91726.0,0.00027255]
[1763559210472,0.14917128,91727.0,91726.0,0.04369255]
[1763559211161,0.14917128,91727.0,91726.0,0.02139255]
[1763559211560,0.14917128,91727.0,91726.0,0.04369255]
[1763559212371,0.14917128,91727.0,91726.0,0.04469255]
[1763559212877,0.14917128,91727.0,91726.0,0.04569255]
[1763559213769,0.14917128,91727.0,91726.0,0.02339255]
[1763559214074,0.14917128,91727.0,91726.0,0.02239255]
[1763559214375,0.14917128,91727.0,91726.0,0.04375255]
[1763559214964,0.14917128,91727.0,91726.0,0.02350255]
[1763559215364,0.14917128,91727.0,91726.0,0.00127255]
[1763559215566,0.14917128,91727.0,91726.0,0.04486255]
[1763559215865,0.14917128,91727.0,91726.0,0.00127255]
[1763559216374,0.1517498,91718.0,91717.0,0.0001061]
[1763559216558,0.5749898,91718.0,91700.0,0.04359]
[1763559216759,0.04264,91701.0,91700.0,0.04578803]
[1763559216963,0.04275134,91701.0,91700.0,0.04578803]
[1763559217967,0.04275134,91701.0,91700.0,0.06050803]
[1763559218168,0.04275134,91701.0,91700.0,0.04778803]
[1763559218367,0.04275134,91701.0,91700.0,0.02423]
[1763559218665,0.04164,91699.0,91698.0,0.40439]
[1763559218872,0.04064,91699.0,91698.0,0.40439]
[1763559219269,0.04064,91699.0,91698.0,0.04359]
[1763559219667,0.04264,91696.0,91695.0,0.04372566]
[1763559219872,0.04264,91696.0,91695.0,0.00013566]
[1763559220072,0.151776,91696.0,91695.0,0.00013566]
[1763559220378,0.151776,91696.0,91695.0,0.02236566]
[1763559220877,0.04264,91696.0,91695.0,0.04372566]
[1763559221174,0.04164,91696.0,91695.0,0.04372566]
[1763559221672,0.04064,91696.0,91695.0,0.04372566]
[1763559222069,0.04064,91696.0,91695.0,0.04472566]
[1763559222275,0.14576,91696.0,91695.0,0.04472566]
[1763559222775,0.14576,91696.0,91695.0,0.00113566]
[1763559222969,0.15325,91696.0,91695.0,0.00213566]
[1763559223171,0.15325,91696.0,91686.0,0.00027267]
[1763559223477,0.04264,91687.0,91686.0,0.04386267]
[1763559223774,0.14776,91687.0,91686.0,0.04386267]
[1763559224976,0.14576,91687.0,91686.0,0.04386267]
[1763559226167,0.10512,91687.0,91686.0,0.04486267]
[1763559226569,0.38238,91692.0,91691.0,0.04359]
[1763559226770,0.46592,91692.0,91691.0,0.04359]
[1763559227568,0.3608,91692.0,91691.0,0.04359]
[1763559227770,0.36091134,91701.0,91700.0,0.04359]
[1763559227970,0.46603134,91701.0,91700.0,0.04578803]
[1763559228369,0.48761134,91701.0,91700.0,0.04578803]
[1763559228674,0.46603134,91701.0,91700.0,0.04578803]
[1763559228874,0.48761134,91701.0,91700.0,0.04578803]
[1763559229072,0.46603134,91701.0,91700.0,0.04578803]
[1763559229576,0.00011134,91701.0,91700.0,0.04578803]
[1763559230976,0.00016358,91708.0,91707.0,0.04359]
[1763559231875,0.00026889,91708.0,91707.0,0.04359]
[1763559233471,0.00126889,91708.0,91707.0,0.04359]
[1763559234475,0.00026889,91708.0,91707.0,0.04359]
[1763559235479,0.40344,91721.0,91720.0,0.05631]
[1763559235785,0.40344,91721.0,91720.0,0.05850803]
[1763559236283,0.38238,91721.0,91720.0,0.05850803]
[1763559236483,0.36088042,91721.0,91720.0,0.05850803]
[1763559237479,0.40352042,91721.0,91720.0,0.05850803]
[1763559237682,0.51262672,91721.0,91720.0,0.05850803]
[1763559237982,0.40352042,91721.0,91720.0,0.05850803]
[1763559239075,0.40452042,91721.0,91720.0,0.05850803]
[1763559239582,0.40352042,91721.0,91720.0,0.05850803]
[1763559239883,0.36188042,91721.0,91720.0,0.05850803]
[1763559240177,0.00208042,91721.0,91720.0,0.05850803]
[1763559240572,0.46608358,91730.0,91729.0,0.04359]
[1763559240773,0.36096358,91730.0,91729.0,0.1526867]
[1763559240974,0.02174358,91730.0,91729.0,0.1526867]
[1763559241173,0.02174358,91730.0,91726.0,0.3608]
[1763559241174,0.04264,91727.0,91726.0,0.3608]
[1763559241378,0.04264,91727.0,91726.0,0.38303]
[1763559241774,0.04264,91727.0,91726.0,0.40439]
[1763559241982,0.04264,91727.0,91726.0,0.38303]
[1763559242281,0.04264,91727.0,91726.0,0.40485]
[1763559242590,0.04264,91727.0,91720.0,0.05602]
[1763559242591,0.04272,91721.0,91720.0,0.05602]
[1763559242790,0.04272,91721.0,91720.0,0.05821803]
[1763559243283,0.00116358,91730.0,91729.0,0.0433]
[1763559243487,0.00316358,91730.0,91729.0,0.0433]
[1763559243674,0.00216358,91730.0,91729.0,0.0433]
[1763559244570,0.04488358,91730.0,91729.0,0.0433]
[1763559244985,0.00216358,91730.0,91729.0,0.0433]
[1763559245178,0.00316358,91730.0,91729.0,0.0433]
[1763559245883,0.00116358,91730.0,91729.0,0.0433]
[1763559246782,0.00216358,91730.0,91729.0,0.0433]
[1763559247579,0.00116358,91730.0,91729.0,0.0433]
[1763559247887,0.00216358,91730.0,91729.0,0.0433]
[1763559248590,0.00116358,91730.0,91729.0,0.0433]
[1763559249986,0.00016358,91730.0,91729.0,0.0433]
[1763559251280,0.04288358,91730.0,91729.0,0.0433]
[1763559253286,0.1518263,91721.0,91720.0,0.0342]
[1763559253482,0.1518358,91713.0,91712.0,0.02148]
[1763559253782,0.04272,91713.0,91712.0,0.0433]
[1763559253985,0.40352,91713.0,91712.0,0.05623]
[1763559255780,0.50864,91713.0,91712.0,0.05623]
[1763559256288,0.50864,91713.0,91712.0,0.0433]
[1763559256790,0.50864,91713.0,91712.0,0.05623]
[1763559258886,0.04272,91712.0,91710.0,0.00219803]
[1763559259094,0.04272,91712.0,91711.0,0.04346358]
[1763559265293,0.3608,91722.0,91721.0,0.1686463]
[1763559266688,0.40472,91722.0,91721.0,0.05954]
[1763559268588,0.40472,91722.0,91721.0,0.0459]
[1763559268893,0.40472,91722.0,91721.0,0.05954]
[1763559271089,0.40472,91722.0,91721.0,0.1686463]
[1763559271494,0.5138251,91722.0,91721.0,0.05954]
[1763559271695,0.5138251,91722.0,91721.0,0.02283]
[1763559272892,0.04431,91721.0,91720.0,0.00219803]
[1763559273196,0.04431,91715.0,91714.0,0.05774]
[1763559276598,0.04431,91715.0,91714.0,0.1668546]
[1763559277695,0.153427,91712.0,91711.0,0.02213358]
[1763559278092,0.04431,91712.0,91711.0,0.04426358]
[1763559278698,0.04431,91712.0,91711.0,0.00016358]
[1763559283798,0.153427,91712.0,91711.0,0.00016358]
[1763559284502,0.04431,91697.0,91696.0,0.08311592]
[1763559284806,0.02917764,91697.0,91696.0,0.0441]
[1763559285805,0.02917764,91697.0,91696.0,0.001]
[1763559286211,0.38997764,91697.0,91696.0,0.001]
[1763559286598,0.02114,91687.0,91686.0,0.05756267]
[1763559287303,0.02014,91687.0,91686.0,0.05756267]
[1763559287506,0.1292867,91687.0,91686.0,0.05756267]
[1763559288003,0.1282867,91687.0,91686.0,0.00027267]
[1763559288209,0.01914,91687.0,91686.0,0.05756267]
[1763559289200,0.01914,91687.0,91686.0,0.05856267]
[1763559289395,0.01914,91687.0,91686.0,0.05956267]
[1763559290003,0.01914,91687.0,91673.0,0.06098592]
[1763559290004,0.1253022,91674.0,91673.0,0.06098592]
[1763559290311,0.1253022,91674.0,91666.0,0.0441]
[1763559290312,0.01614,91667.0,91666.0,0.0441]
[1763559291803,0.01514,91667.0,91666.0,0.0441]
[1763559293208,0.01414,91667.0,91666.0,0.0441]
[1763559295107,0.37294,91668.0,91667.0,0.0441]
[1763559300719,0.37294,91679.0,91678.0,0.0441]
[1763559300910,0.3608,91679.0,91678.0,0.0441]
[1763559301309,0.46596,91679.0,91678.0,0.0441]
[1763559301511,0.4781,91679.0,91678.0,0.0441]
[1763559301707,0.01214,91671.0,91670.0,0.3608]
[1763559301914,0.01214,91671.0,91670.0,0.00219803]
[1763559302116,0.01214,91671.0,91670.0,0.04654803]
[1763559302421,0.4781,91679.0,91678.0,0.04435]
[1763559302617,0.3608,91679.0,91678.0,0.04435]
[1763559302819,0.46592,91679.0,91678.0,0.04435]
[1763559303921,0.47199,91679.0,91678.0,0.04435]
[1763559304219,0.46692,91679.0,91678.0,0.04435]
[1763559304420,0.001,91679.0,91678.0,0.04435]
[1763559304621,0.10512,91694.0,91682.0,0.1535027]
[1763559304922,0.10512,91694.0,91680.0,0.01524803]
[1763559304923,0.10512,91694.0,91693.0,0.1534896]
[1763559307325,0.01446,91691.0,91690.0,0.00219803]
[1763559307626,0.01446,91691.0,91690.0,0.04654803]
[1763559308220,0.01446,91685.0,91684.0,0.00016358]
[1763559308426,0.2288091,91685.0,91684.0,0.00016358]
[1763559309223,0.1236139,91681.0,91672.0,0.01305]
[1763559309416,0.01446,91661.0,91660.0,0.40515]
[1763559309620,0.01446,91661.0,91660.0,0.04654803]
[1763559309820,0.1236377,91661.0,91660.0,0.04654803]
[1763559310024,0.01446,91661.0,91660.0,0.04654803]
[1763559310421,0.1236532,91648.0,91641.0,0.02926794]
[1763559310619,0.48046,91648.0,91647.0,0.0574]
[1763559311516,0.1236544,91647.0,91640.0,0.00010093]
[1763559311830,0.1236544,91647.0,91640.0,0.00229896]
[1763559312522,0.1236615,91641.0,91640.0,0.00010093]
[1763559312826,0.01446,91630.0,91629.0,0.0574]
[1763559313021,0.4805,91630.0,91629.0,0.0574]
[1763559313421,0.37526,91630.0,91629.0,0.0574]
[1763559313726,0.46614093,91630.0,91629.0,0.0574]
[1763559314720,0.46614093,91630.0,91621.0,0.04435]
[1763559314721,0.01446,91622.0,91621.0,0.04435]
[1763559314920,0.3608,91622.0,91621.0,0.04435]
[1763559315225,0.01446,91613.0,91612.0,0.40515]
[1763559315529,0.11974,91613.0,91612.0,0.40515]
[1763559316034,0.36090093,91630.0,91629.0,0.04435]
[1763559316327,0.00723,91621.0,91620.0,0.0574]
[1763559316517,0.36813093,91630.0,91629.0,0.04435]
[1763559316720,0.47341093,91630.0,91629.0,0.04435]
[1763559317024,0.36813093,91630.0,91629.0,0.04435]
[1763559317224,0.46618093,91630.0,91629.0,0.04435]
[1763559317426,0.01446,91623.0,91622.0,0.02214]
[1763559317726,0.01446,91621.0,91620.0,0.01524803]
[1763559317932,0.48054,91621.0,91620.0,0.05959803]
[1763559318225,0.48054,91621.0,91612.0,0.3608]
[1763559318428,0.48054,91621.0,91590.0,0.14425522]
[1763559318429,0.01446,91611.0,91610.0,0.00219803]
[1763559318630,0.01446,91607.0,91590.0,0.01305]
[1763559318832,0.11978,91607.0,91594.0,0.3608]
[1763559319341,0.11978,91607.0,91597.0,0.01305]
[1763559319833,0.01446,91607.0,91597.0,0.01305]
[1763559320035,0.11978,91607.0,91606.0,0.04462291]
[1763559320223,0.1092413,91608.0,91584.0,0.36092725]
[1763559320540,0.00016376,91605.0,91597.0,0.01305]
[1763559320827,0.01446,91601.0,91600.0,0.04654803]
[1763559321027,0.3608,91603.0,91602.0,0.04435]
[1763559321332,0.47339,91603.0,91602.0,0.04435]
[1763559321540,0.01446,91601.0,91600.0,0.00219803]
[1763559321721,0.01446,91601.0,91600.0,0.05959803]
[1763559321922,0.10536,91601.0,91600.0,0.05959803]
[1763559322228,0.11259,91601.0,91600.0,0.05959803]
[1763559322424,0.11982,91601.0,91586.0,0.37385]
[1763559322625,0.01446,91591.0,91590.0,0.04654803]
[1763559322833,0.11982,91591.0,91590.0,0.04654803]
[1763559323034,0.11991271,91591.0,91590.0,0.04654803]
[1763559323334,0.11991271,91591.0,91590.0,0.05959803]
[1763559323531,9.271e-05,91591.0,91590.0,0.05959803]
[1763559323733,0.10545271,91591.0,91590.0,0.05959803]
[1763559324433,0.11991271,91591.0,91590.0,0.04662803]
[1763559325137,0.10545271,91591.0,91590.0,0.04662803]
[1763559325522,9.271e-05,91591.0,91590.0,0.04662803]
[1763559326826,0.01455271,91591.0,91590.0,0.04662803]
[1763559327025,0.10545271,91591.0,91590.0,0.04662803]
[1763559327233,0.10549271,91591.0,91590.0,0.04662803]
[1763559328333,9.271e-05,91591.0,91590.0,0.04662803]
[1763559328534,0.10549271,91591.0,91590.0,0.04662803]
[1763559328831,0.11995271,91591.0,91590.0,0.04662803]
[1763559329629,0.01446,91585.0,91584.0,0.00012725]
[1763559329827,0.11986,91585.0,91584.0,0.00012725]
[1763559330026,0.3608,91586.0,91585.0,0.04443]
[1763559330634,9.271e-05,91591.0,91590.0,0.1536923]
[1763559330831,9.271e-05,91591.0,91590.0,0.15589033]
[1763559331035,0.32589271,91594.0,91593.0,0.04443]
[1763559331240,0.1054,91598.0,91597.0,0.05817]
[1763559332036,0.12855,91598.0,91597.0,0.05817]
[1763559332231,0.1542692,91601.0,91600.0,0.04590803]
[1763559332438,0.2596692,91601.0,91600.0,0.04590803]
[1763559332837,0.15042,91601.0,91600.0,0.04590803]
[1763559333038,0.3608,91611.0,91600.0,0.04590803]
[1763559333039,0.3608,91611.0,91604.0,0.04371]
[1763559333433,0.1054,91607.0,91604.0,0.04371]
[1763559333744,0.04518376,91605.0,91604.0,0.04371]
[1763559334737,0.00016376,91605.0,91604.0,0.04371]
[1763559334943,0.10656376,91605.0,91604.0,0.04371]
[1763559335440,0.00116376,91605.0,91604.0,0.04371]
[1763559335646,0.10656376,91605.0,91604.0,0.04371]
[1763559336139,0.00116376,91605.0,91604.0,0.04371]
[1763559336337,0.00116376,91605.0,91600.0,0.00219803]
[1763559336338,0.3608,91611.0,91610.0,0.0565]
[1763559336538,0.3608,91611.0,91610.0,0.16793653]
[1763559336940,0.1092148,91630.0,91621.0,0.04371]
[1763559337245,0.3608,91632.0,91621.0,0.04371]
[1763559337246,0.51122,91622.0,91621.0,0.04371]
[1763559337938,0.1542453,91621.0,91620.0,0.00219803]
[1763559338541,0.02315,91603.0,91602.0,0.40451]
[1763559338745,0.15442076,91612.0,91611.0,0.04371]
[1763559338942,0.04502,91611.0,91610.0,0.00219803]
[1763559339148,0.02315,91611.0,91610.0,0.05869803]
[1763559339543,0.04502,91611.0,91610.0,0.05869803]
[1763559340143,0.10556376,91612.0,91610.0,0.05869803]
[1763559340333,0.10556376,91612.0,91611.0,0.04371]
[1763559341352,0.10556376,91612.0,91610.0,0.01498803]
[1763559341353,0.1542573,91611.0,91610.0,0.00219803]
[1763559341645,0.1552573,91611.0,91610.0,0.00219803]
[1763559341853,0.1562573,91611.0,91610.0,0.00219803]
[1763559342247,0.1542668,91603.0,91602.0,0.40451]
[1763559342551,0.1542668,91603.0,91602.0,0.3608]
[1763559342748,0.1054,91603.0,91595.0,0.00016376]
[1763559343048,0.15042,91603.0,91602.0,0.02144]
[1763559343350,0.04502,91601.0,91600.0,0.00219803]
[1763559344051,0.04502,91601.0,91595.0,0.00016376]
[1763559344052,0.1542752,91596.0,91595.0,0.00016376]
[1763559344241,0.5150752,91596.0,91595.0,0.00016376]
[1763559344953,0.5150752,91596.0,91595.0,0.04387376]
[1763559344954,0.40582,91596.0,91595.0,0.04387376]
[1763559345244,0.51122,91596.0,91595.0,0.00016376]
[1763559348047,0.51122,91596.0,91587.0,0.3608]
[1763559348250,0.51122,91596.0,91584.0,0.00012725]
[1763559348251,0.04502,91585.0,91584.0,0.00012725]
[1763559348444,0.15042,91585.0,91584.0,0.02156725]
[1763559348649,0.15042,91585.0,91584.0,0.04383725]
[1763559349555,0.1054,91585.0,91584.0,0.04383725]
[1763559349946,0.1054,91585.0,91584.0,0.04483725]
[1763559350647,0.3608,91588.0,91587.0,0.04371]
[1763559350848,0.51122,91588.0,91587.0,0.04371]
[1763559351150,0.04502,91585.0,91584.0,0.00112725]
[1763559351347,0.04502,91585.0,91584.0,0.02256725]
[1763559351658,0.4662,91588.0,91587.0,0.04371]
[1763559351956,0.51122,91588.0,91587.0,0.04371]
[1763559353957,0.51122,91588.0,91584.0,0.00012725]
[1763559353958,0.04502,91585.0,91584.0,0.00012725]
[1763559354155,0.1542883,91585.0,91584.0,0.04383725]
[1763559354456,0.3608,91588.0,91587.0,0.04371]
[1763559354647,0.5113,91588.0,91587.0,0.04371]
[1763559354850,0.40582,91588.0,91587.0,0.04371]
[1763559355055,0.5113,91588.0,91587.0,0.04371]
[1763559355254,0.3608,91588.0,91587.0,0.04371]
[1763559355458,0.5113,91588.0,91587.0,0.04371]
[1763559355854,0.48943,91588.0,91587.0,0.04371]
[1763559356157,0.46628,91588.0,91587.0,0.04371]
[1763559356352,0.5113,91588.0,91587.0,0.04371]
[1763559356553,0.04502,91585.0,91584.0,0.00112725]
[1763559356760,0.04502,91585.0,91584.0,0.04483725]
[1763559357257,0.17410522,91585.0,91584.0,0.04483725]
[1763559357460,0.17410522,91585.0,91584.0,0.04383725]
[1763559359259,0.17410522,91585.0,91584.0,0.02156725]
[1763559359559,0.04502,91568.0,91567.0,0.1529991]
[1763559359763,0.10548,91573.0,91572.0,0.1529938]
[1763559359963,0.40582,91577.0,91576.0,0.04371]
[1763559360154,0.38439587,91577.0,91576.0,0.04371]
[1763559360357,0.02359587,91577.0,91576.0,0.04371]
[1763559360558,0.02372012,91577.0,91576.0,0.04371]
[1763559361057,0.02372012,91577.0,91572.0,0.02144]
[1763559361058,0.04502,91573.0,91572.0,0.02144]
[1763559361263,0.04502,91573.0,91566.0,0.00027303]
[1763559361264,0.1543098,91567.0,91566.0,3e-08]
[1763559361454,0.1543098,91567.0,91546.0,0.04371]
[1763559361455,0.04502,91547.0,91546.0,0.04371]
[1763559361651,0.53505453,91547.0,91546.0,0.04371]
[1763559361848,0.53505453,91547.0,91539.0,0.01279]
[1763559362058,0.1535832,91539.0,91530.0,0.01279]
[1763559362456,0.5143832,91539.0,91538.0,0.02308339]
[1763559362663,0.40506,91539.0,91538.0,0.04531339]
[1763559363951,0.40506,91539.0,91538.0,0.02308339]
[1763559364149,0.51062,91539.0,91538.0,0.00010339]
[1763559366770,0.1535975,91527.0,91523.0,0.3608]
[1763559366954,0.04426,91514.0,91513.0,0.3608]
[1763559367155,0.3608,91529.0,91513.0,0.40601]
[1763559367462,0.02254,91521.0,91520.0,0.06067803]
[1763559367664,0.04435523,91521.0,91520.0,0.04740803]
[1763559367861,0.51071523,91521.0,91520.0,0.06067803]
[1763559369567,0.51071523,91521.0,91520.0,0.04740803]
[1763559369765,0.04426,91503.0,91502.0,0.40601]
[1763559369969,0.04426,91511.0,91510.0,0.06067803]
[1763559370170,0.14982,91511.0,91510.0,0.06067803]
[1763559370576,0.04426,91511.0,91510.0,0.06067803]
[1763559370866,0.14986,91511.0,91510.0,0.00219803]
[1763559371071,0.04426,91494.0,91493.0,0.40601]
[1763559371272,0.14997071,91494.0,91493.0,0.40601]
[1763559371770,0.14997071,91494.0,91493.0,0.38378]
[1763559372375,0.04426,91491.0,91490.0,0.04740803]
[1763559372675,0.04426,91487.0,91486.0,0.00027327]
[1763559373367,0.02254,91478.0,91472.0,0.3608]
[1763559373678,0.14994,91478.0,91472.0,0.3608]
[1763559373873,0.14906582,91478.0,91463.0,0.3608]
[1763559374178,0.14906582,91478.0,91452.0,0.3608]
[1763559374480,0.04426,91461.0,91450.0,0.01327]
[1763559374674,0.04426,91461.0,91450.0,0.01546803]
[1763559374675,0.10468,91460.0,91450.0,0.01546803]
[1763559374872,0.04426,91451.0,91450.0,0.04740803]
[1763559375071,0.10468,91460.0,91446.0,0.00027339]
[1763559375072,0.04426,91447.0,91446.0,0.00027339]
[1763559375279,0.14994,91447.0,91446.0,0.00027339]
[1763559375576,0.15005013,91447.0,91446.0,0.00027339]
[1763559375775,0.00011013,91447.0,91446.0,0.51571779]
[1763559375984,0.00016395,91465.0,91464.0,0.05848]
[1763559376171,0.07777596,91465.0,91464.0,0.41928]
[1763559376373,0.38334,91482.0,91481.0,0.04521]
[1763559376567,0.38334,91482.0,91480.0,0.00219803]
[1763559376568,0.51082,91482.0,91480.0,0.00219803]
[1763559376877,0.04439192,91481.0,91480.0,0.02517803]
[1763559377474,0.04439192,91481.0,91480.0,0.00219803]
[1763559377776,0.04426,91472.0,91471.0,0.00016395]
[1763559377977,0.40506,91472.0,91448.0,0.3608]
[1763559378176,0.40506,91472.0,91470.0,0.02223]
[1763559378177,0.02254,91471.0,91470.0,0.02223]
[1763559378384,0.02254,91477.0,91476.0,0.02298]
[1763559378678,0.02254,91477.0,91476.0,0.05848]
[1763559379179,0.00213192,91481.0,91476.0,0.05848]
[1763559379180,0.00113192,91481.0,91480.0,0.04740803]
[1763559379371,0.00016395,91486.0,91485.0,0.04521]
[1763559380485,0.00028273,91486.0,91485.0,0.04521]
[1763559383779,0.04454273,91486.0,91485.0,0.04521]
[1763559384484,0.04426,91465.0,91464.0,0.02298]
[1763559384784,0.1501,91465.0,91464.0,0.04521]
[1763559385378,0.10584,91465.0,91464.0,0.04521]
[1763559385579,0.04426,91462.0,91461.0,0.3608]
[1763559385778,0.04439228,91462.0,91461.0,0.3608]
[1763559386183,0.04426,91450.0,91449.0,0.3608]
[1763559386486,0.15014,91450.0,91449.0,0.3608]
[1763559387086,0.15014,91450.0,91440.0,0.01327]
[1763559387087,0.04426,91447.0,91440.0,0.01327]
[1763559387674,0.04426,91447.0,91432.0,0.3608]
[1763559387675,0.04426,91447.0,91446.0,1e-08]
[1763559388179,0.1094499,91433.0,91432.0,0.38378]
[1763559388385,0.15023057,91433.0,91432.0,0.40601]
[1763559388578,0.15023057,91433.0,91432.0,0.3608]
[1763559388786,0.04426,91431.0,91430.0,0.00259803]
[1763559389181,0.04426,91431.0,91430.0,0.04561]
[1763559389488,0.04426,91431.0,91430.0,0.04780803]
[1763559389877,9.057e-05,91433.0,91432.0,0.04521]
[1763559390186,0.00016404,91440.0,91439.0,0.1546527]
[1763559390388,0.1094112,91466.0,91454.0,0.04521]
[1763559390587,0.04426,91461.0,91460.0,0.00219803]
[1763559390789,0.04426,91461.0,91460.0,0.04740803]
[1763559390790,0.12846,91461.0,91460.0,0.04740803]
[1763559390985,0.04426,91448.0,91447.0,0.3608]
[1763559391185,4.171e-05,91461.0,91460.0,0.04466]
[1763559391391,0.10596171,91461.0,91460.0,0.04685803]
[1763559391888,4.171e-05,91461.0,91460.0,0.04685803]
[1763559392283,0.10347331,91461.0,91460.0,0.04685803]
[1763559392591,0.10447331,91461.0,91460.0,0.04685803]
[1763559392791,0.10447331,91461.0,91460.0,0.00219803]
[1763559392792,0.14986331,91461.0,91460.0,0.00219803]
[1763559393186,0.1548172,91452.0,91451.0,0.00016404]
[1763559394486,0.1548423,91431.0,91418.0,0.3608]
[1763559394689,0.2607623,91431.0,91430.0,0.00259803]
[1763559395279,0.15131,91431.0,91430.0,0.00259803]
[1763559395485,0.15131,91431.0,91430.0,0.02410803]
[1763559395486,0.2607623,91431.0,91430.0,0.02410803]
[1763559395791,0.15131,91431.0,91430.0,0.02410803]
[1763559396091,0.04539,91437.0,91436.0,0.04424]
[1763559396284,0.15131,91437.0,91436.0,0.02151]
[1763559396478,0.15131,91437.0,91430.0,0.0004]
[1763559396688,0.04539,91418.0,91417.0,0.3608]
[1763559396885,0.15131,91418.0,91417.0,0.3608]
[1763559398389,0.15131,91418.0,91400.0,0.0001074]
[1763559398390,0.04539,91407.0,91406.0,0.04451351]
[1763559399683,0.154871,91407.0,91406.0,0.00027351]
[1763559399883,0.04539,91401.0,91380.0,0.3608]
[1763559400189,0.3608,91411.0,91401.0,0.04424]
[1763559400190,0.1094872,91402.0,91401.0,0.04424]
[1763559400389,0.10596,91402.0,91401.0,0.04424]
[1763559400585,0.3608,91411.0,91402.0,0.109487]
[1763559400789,0.00016404,91416.0,91400.0,0.00219803]
[1763559400790,0.00016404,91416.0,91415.0,0.04424]
[1763559400987,0.10620339,91416.0,91415.0,0.04424]
[1763559401190,0.00024339,91416.0,91415.0,0.04424]
[1763559401386,0.3608,91430.0,91429.0,0.05778]
[1763559401582,0.1094508,91433.0,91432.0,0.04424]
[1763559401782,0.2154108,91433.0,91432.0,0.04424]
[1763559402095,0.10596,91433.0,91432.0,0.04424]
[1763559402991,0.109442,91440.0,91433.0,0.1094499]
[1763559403190,0.02389433,91439.0,91438.0,0.04424]
[1763559403391,0.00016404,91442.0,91441.0,0.1536803]
[1763559403689,0.00016404,91442.0,91441.0,0.40504]
[1763559404284,0.1094121,91465.0,91462.0,0.04424]
[1763559404483,0.109414,91463.0,91462.0,0.04424]
[1763559404695,0.1094093,91467.0,91463.0,0.02151]
[1763559404892,0.02390422,91466.0,91463.0,0.02151]
[1763559405098,0.02390422,91465.0,91464.0,0.1536528]
[1763559405287,0.00016404,91474.0,91473.0,0.04424]
[1763559405591,0.21552484,91474.0,91473.0,0.04424]
[1763559405798,0.00016404,91474.0,91473.0,0.04424]
[1763559406096,0.10616404,91474.0,91473.0,0.04424]
[1763559406295,0.00016404,91474.0,91473.0,0.04424]
[1763559406693,0.00016404,91474.0,91473.0,0.40504]
[1763559406895,0.3608,91487.0,91486.0,0.04424]
[1763559407695,0.3608,91496.0,91495.0,0.04424]
[1763559407890,0.49070747,91496.0,91495.0,0.04424]
[1763559408090,0.38470747,91496.0,91495.0,0.04424]
[1763559408288,0.12891,91496.0,91495.0,0.04424]
[1763559408485,0.13327661,91496.0,91495.0,0.04424]
[1763559408694,0.23923661,91496.0,91495.0,0.04424]
[1763559408894,0.2607255,91496.0,91495.0,0.02151]
[1763559409089,0.2607255,91496.0,91495.0,0.04424]
[1763559409591,0.3608,91499.0,91498.0,0.04424]
[1763559409784,0.00016394,91505.0,91504.0,0.04424]
[1763559410000,0.10612394,91505.0,91504.0,0.04424]
[1763559410186,0.00016394,91505.0,91504.0,0.04424]
[1763559410382,0.10612394,91505.0,91504.0,0.04424]
[1763559411188,0.10812394,91505.0,91504.0,0.04424]
[1763559411389,0.04539,91501.0,91500.0,0.00219803]
[1763559411789,0.06926416,91501.0,91500.0,0.00219803]
[1763559411996,0.02387416,91501.0,91500.0,0.04643803]
[1763559412289,0.00216394,91505.0,91504.0,0.04424]
[1763559412494,0.10812394,91505.0,91504.0,0.04424]
[1763559412694,0.00216394,91505.0,91504.0,0.04424]
[1763559412893,0.10812394,91505.0,91504.0,0.04424]
[1763559413101,0.00216394,91505.0,91504.0,0.04424]
[1763559413494,0.00216394,91505.0,91500.0,0.00219803]
[1763559413495,0.04539,91501.0,91500.0,0.02370803]
[1763559413690,0.04539,91501.0,91500.0,0.00219803]
[1763559415890,0.1547586,91501.0,91500.0,0.00219803]
[1763559416104,0.1547693,91492.0,91486.0,0.00016394]
[1763559416394,0.15135,91492.0,91490.0,0.00219803]